Cogmind - Beta 10 X1 @@@ ROGUE MODE // 2020.06.14 @ 14:30:02 Player: Decinym Result: Self-destructed Performance ------------- Evolutions (3) 1500 Regions Visited (9) 1800 Robots Destroyed (127) 635 Value Destroyed (4205) 4205 Prototype IDs (39) 780 Alien Tech Used (0) 0 Bonus (1354) 1354 TOTAL SCORE: 10274 Bonus ------- High Alert Combat Kills 756 Follower Combat Kills 37 Aligned with FarCom 300 Met Data Miner 300 Friendly Fire -39 Cogmind --------- Core Integrity 661/700 Matter 232/300 Energy 310/310 System Corruption 2% Temperature Cool (84) Movement Walking (150) Ox1 Location -6/Proximity Caves Parts ------- > --- POWER (1) -------- Heavy Deuterium Engine > --- PROPULSION (3) --- Carbon-fiber Leg Carbon-fiber Leg Carbon-fiber Leg > --- UTILITY (7) ------ Large Storage Unit Large Storage Unit Large Storage Unit Advanced Sensor Array Advanced Signal Interpreter > --- WEAPON (2) ------- Heavy Ion Cannon > --- INVENTORY (22) --- Light Nuclear Core Heavy Deuterium Engine Heavy Deuterium Engine Carbon-fiber Leg Improved Carbon-fiber Leg Cooled VTOL Module Cooled VTOL Module Improved Heat Sink Advanced Heat Sink Large Battery (300) Improved Target Analyzer Improved Propulsion Shielding Hardened Heavy Armor Plating Hacking Suite Shock Rifle Heavy Laser EM Pulse Cannon Heavy Ion Cannon Improved Grenade Launcher Katana Peak State ------------ > --- POWER ------------ Heavy Deuterium Engine > --- PROPULSION ------- Carbon-fiber Leg Carbon-fiber Leg Cooled VTOL Module > --- UTILITY ---------- Improved Heat Sink Large Storage Unit Large Storage Unit Large Storage Unit Hardened Heavy Armor Plating Hacking Suite > --- WEAPON ----------- Heavy Ion Cannon Heavy Ion Cannon > --- INVENTORY -------- Light Nuclear Core Improved Deuterium Engine Heavy Deuterium Engine Carbon-fiber Leg Compact Wheel Advanced Heat Sink Large Battery Advanced Sensor Array Advanced Signal Interpreter Improved Target Analyzer Improved Propulsion Shielding Hardened Heavy Armor Plating Hacking Suite Shock Rifle Heavy Laser EM Pulse Cannon Latent Energy Streamer Heavy Ion Cannon Improved Grenade Launcher Improved Grenade Launcher Katana [Rating: 49] Favorites ----------- Power Micro Nuclear Core Engine Heavy Deuterium Engine Power Core Micro Nuclear Core Propulsion Carbon-fiber Leg Treads Armored Treads Leg Carbon-fiber Leg Wheel Wheel Flight Unit Cooled VTOL Module Utility Large Storage Unit Device Improved Heat Sink Storage Large Storage Unit Processor Improved Targeting Computer Hackware Hacking Suite Protection Improved Light Armor Plating Weapon Heavy Ion Cannon Energy Gun Medium Laser Energy Cannon Heavy Ion Cannon Ballistic Gun Assault Rifle Ballistic Cannon Mini Assault Cannon Launcher Improved Grenade Launcher Build | -11 -10 -10 -10 -9 -8 -7 -7 -7 -6 ------- Run | Scr Mat Min Exi Min Mat Fac Low Dat Pro Slots Evolved 6 | . . . . . 4 2 . . . Power . | . . . . . . . . . . Propulsion 1 | . . . . . 1 . . . . Utility 5 | . . . . . 3 2 . . . Weapon . | . . . . . . . . . . Parts Attached 98 | . 9 6 . 3 58 18 2 . 2 Power 11 | . . 1 . 1 8 1 . . . Engine 6 | . . 1 . 1 3 1 . . . Core 5 | . . . . . 5 . . . . Reactor . | . . . . . . . . . . Propulsion 20 | . . 2 . . 14 4 . . . Treads 3 | . . . . . 3 . . . . Leg 7 | . . . . . 4 3 . . . Wheel 9 | . . 2 . . 7 . . . . Hover . | . . . . . . . . . . Flight 1 | . . . . . . 1 . . . Utility 24 | . 3 . . . 14 5 2 . . Device 5 | . . . . . 4 . 1 . . Storage 9 | . 3 . . . 3 3 . . . Processor 3 | . . . . . 2 . 1 . . Hackware 1 | . . . . . . 1 . . . Protection 6 | . . . . . 5 1 . . . Artifact . | . . . . . . . . . . Weapon 43 | . 6 3 . 2 22 8 . . 2 Energy Gun 19 | . 2 3 . 2 12 . . . . Energy Cannon 10 | . . . . . 4 5 . . 1 Ballistic Gun 3 | . 2 . . . 1 . . . . Ballistic Cannon 2 | . . . . . 2 . . . . Launcher 9 | . 2 . . . 3 3 . . 1 Special Weapon . | . . . . . . . . . . Impact Weapon . | . . . . . . . . . . Slashing Weapon . | . . . . . . . . . . Piercing Weapon . | . . . . . . . . . . Special Melee Weapon . | . . . . . . . . . . Unidentified Prototypes 6 | . . . . . 4 2 . . . Parts Lost 32 | . 1 6 2 . 19 2 . . 2 Power 4 | . . 1 1 . 2 . . . . Propulsion 12 | . . 2 . . 9 1 . . . Utility 3 | . . . . . 2 . . . 1 Weapon 13 | . 1 3 1 . 6 1 . . 1 Highest Loss Streak 6 | . 1 3 2 . 6 1 . . 2 Average Slot Usage (%) 95 | . 96 96 97 97 97 91 92 92 92 Engine 7 | . 14 14 12 14 5 . 7 7 7 Core 2 | . . . . . 3 6 . . . Treads 2 | . . . . . 6 . . . . Leg 13 | . 28 6 . . 9 15 23 23 23 Wheel 9 | . . 19 28 28 9 6 . . . Device 5 | . . . . . 8 7 7 7 7 Storage 23 | . 24 28 28 28 20 23 23 23 23 Processor 1 | . . . . . 2 . 2 7 7 Hackware 1 | . . . . . . 6 4 . . Protection 7 | . . . . . 12 7 7 7 7 Energy Gun 10 | . 1 26 26 25 11 6 . . . Energy Cannon 4 | . . . . . 2 6 15 15 14 Ballistic Gun 2 | . 24 . . . . . . . . Naked Turns . | . . . . . . . . . . Heaviest Build 94 | 12 43 43 39 41 70 94 94 94 94 Greatest Support 45 | 20 20 20 20 20 36 45 45 45 45 Greatest Overweight (x) 6 | . 2 4 1 2 6 5 2 2 2 Average Overweight (x) 2 | . 1 1 1 1 3 4 2 2 2 Largest Inventory Capacity 22 | . 16 16 16 16 22 22 22 22 22 Average Capacity 17 | . 12 16 16 16 17 21 22 22 22 Most Carried 22 | . 16 16 16 16 22 22 22 22 22 Average Carried 17 | . 10 14 15 15 16 20 21 22 21 Final Capacity 22 | 6 16 16 16 16 22 22 22 22 22 Final Carried 22 | 6 16 16 16 16 22 22 22 22 21 Class Distribution -------------------- 41% | Scavenger-Mutant 36% | Mutant 21% | Hauler-Mutant Dominant Class ---------------- Mutant | -10/Materials Mutant | -10/Mines Mutant | -10/Exiles Mutant | -9/Mines Scavenger-Mutant | -8/Materials Scavenger-Mutant | -7/Factory Scavenger-Mutant | -7/Lower Caves Hauler-Mutant | -7/Data Miner Hauler-Mutant | -6/Proximity Caves Resources | -11 -10 -10 -10 -9 -8 -7 -7 -7 -6 ----------- Run | Scr Mat Min Exi Min Mat Fac Low Dat Pro Matter Collected 2280 | 200 346 71 . 30 1228 307 53 . 45 Remotely . | . . . . . . . . . . Salvage Created 4195 | . 589 47 . 41 2851 627 . . 40 Parts 223 | . 35 5 . 3 151 28 . . 1 Haulers Intercepted 4 | . 1 . . . 2 1 . . . Recyclers Shooed 1 | . 1 . . . . . . . . Parts Field Recycled . | . . . . . . . . . . Retrieved Matter . | . . . . . . . . . . Parts Self-Destructed 1 | . . . . . . . . . 1 Prevented . | . . . . . . . . . . Kills | -11 -10 -10 -10 -9 -8 -7 -7 -7 -6 ------- Run | Scr Mat Min Exi Min Mat Fac Low Dat Pro Combat Hostiles Destroyed 92 | . 11 4 . 3 57 15 . . 2 Guns 34 | . 8 4 . 3 18 1 . . . Cannons 21 | . . . . . 17 4 . . . AOE 34 | . 3 . . . 19 10 . . 2 Classes Destroyed 17 | . 5 2 . . 9 1 . . . Worker 10 | . 1 . . . 5 4 . . . Builder 6 | . . . . . 6 . . . . Tunneler 2 | . . . . . 1 1 . . . Hauler 4 | . 1 . . . 2 1 . . . Recycler 6 | . 2 . . . 3 1 . . . Mechanic 3 | . . . . . 1 2 . . . Operator 2 | . 1 . . . . 1 . . . Watcher 2 | . . . . . 2 . . . . Swarmer 9 | . . 3 . 3 3 . . . . Grunt 58 | . 11 . . . 34 11 . . 2 Brawler 5 | . . . . . 4 1 . . . Duelist 2 | . . . . . 1 1 . . . Protector 2 | . . . . . 2 . . . . Sentry 9 | . . . . . 8 1 . . . Hunter 5 | . . . . . 5 . . . . Programmer 1 | . . . . . . 1 . . . Assembled 1 | . . 1 . . . . . . . Best Kill Streak 12 | . 4 2 . 3 10 12 . . 2 Combat Bots Only 9 | . 4 2 . 3 9 6 . . 2 Max Kills in Single Turn 4 | . 2 1 . 1 4 2 . . 1 Gunslinging . | . . . . . . . . . . Exploded 4 | . 1 . . . 4 2 . . 1 Melee . | . . . . . . . . . . Uniques/NPCs Destroyed . | . . . . . . . . . . Combat | -11 -10 -10 -10 -9 -8 -7 -7 -7 -6 -------- Run | Scr Mat Min Exi Min Mat Fac Low Dat Pro Damage Taken 5074 | . 466 289 121 96 2928 917 . . 257 Core 488 | . 95 45 12 29 268 21 . . 18 Absorbed by Shields . | . . . . . . . . . . Core Remaining (%) 59 | 100 . . . 27 51 . . . . Volleys Fired 311 | . 51 21 2 5 180 43 . . 9 Largest 2 | . 2 2 2 2 2 2 . . 2 Hottest 130 | . 40 130 100 95 126 130 . . 130 Shots Fired 523 | . 83 39 4 10 309 69 . . 9 Gun 319 | . 73 39 4 10 173 20 . . . Cannon 159 | . . . . . 122 33 . . 4 Launcher 45 | . 10 . . . 14 16 . . 5 Special . | . . . . . . . . . . Kinetic 154 | . 73 . . . 81 . . . . Thermal 272 | . . 39 4 5 168 52 . . 4 Explosive 45 | . 10 . . . 14 16 . . 5 Electromagnetic 52 | . . . . 5 46 1 . . . Robot Hit Streak 15 | . 14 6 2 4 15 10 . . 2 Robot Miss Streak 5 | . 4 5 1 1 5 3 . . 1 Penetration Max 1 | . . . . . 1 . . . . Secondary Targets 4 | . 1 1 . . 2 . . . . Max Gunslinging Chain 1 | . 1 1 . . 1 . . . . Shots Hit Robots 341 | . 57 18 1 7 203 53 . . 2 Core Hits 223 | . 31 5 . 3 126 48 . . 10 Critical Hits 4 | . 1 . . . 3 . . . . Critical Kills 2 | . . . . . 2 . . . . Critical Parts Destroyed 2 | . 1 . . . 1 . . . . Melee Attacks . | . . . . . . . . . . Impact . | . . . . . . . . . . Slashing . | . . . . . . . . . . Piercing . | . . . . . . . . . . Sneak Attacks . | . . . . . . . . . . Combat Hostiles . | . . . . . . . . . . Follow-up Attacks . | . . . . . . . . . . Damage Inflicted 12682 | . 1172 178 13 88 7708 3164 . . 359 Guns 3416 | . 622 178 13 88 2227 288 . . . Cannons 2819 | . . . . . 2024 767 . . 28 Explosions 6447 | . 550 . . . 3457 2109 . . 331 Melee . | . . . . . . . . . . Ramming . | . . . . . . . . . . Kinetic 2084 | . 622 . . . 1462 . . . . Thermal 3853 | . . 178 13 50 2552 1032 . . 28 Explosive 4917 | . 550 . . . 1927 2109 . . 331 Electromagnetic 1828 | . . . . 38 1767 23 . . . Impact . | . . . . . . . . . . Slashing . | . . . . . . . . . . Piercing . | . . . . . . . . . . Highest Corruption 11 | . . . 1 1 11 2 2 2 2 Average Corruption 3 | . . . 1 1 3 1 2 2 2 Corruption Purged . | . . . . . . . . . . Effects 68 | . . . . . 59 2 3 1 3 Message Errors 11 | . . . . . 9 . 1 . 1 Matter Fused 10 | . . . . . 10 . . . . Heat Flow Errors 10 | . . . . . 8 . 2 . . Energy Discharges 7 | . . . . . 5 1 . . 1 Parts Rejected 1 | . . . . . 1 . . . . Data Loss (minor) 8 | . . . . . 6 1 . 1 . Misfires 1 | . . . . . 1 . . . . Misdirections 3 | . . . . . 3 . . . . Targeting Errors 12 | . . . . . 12 . . . . Weapon Failures 5 | . . . . . 4 . . . 1 Overload Shots . | . . . . . . . . . . Overflow Damage 257 | . 25 . . . 153 79 . . . Projectiles 117 | . . . . . 59 58 . . . Explosions 140 | . 25 . . . 94 21 . . . Melee . | . . . . . . . . . . Knockbacks 12 | . . . . . 12 . . . . Impact . | . . . . . . . . . . Kinetic 11 | . . . . . 11 . . . . Secondary 1 | . . . . . 1 . . . . Self-Inflicted Damage 185 | . 21 . . . 35 129 . . . Shots 8 | . 1 . . . 1 6 . . . Rammed . | . . . . . . . . . . Targets Rammed . | . . . . . . . . . . Kicked . | . . . . . . . . . . Crushed . | . . . . . . . . . . Highest Temperature 414 | . 5 414 39 165 256 225 271 . 84 Average Temperature 75 | . 2 163 23 83 53 71 120 . 42 Received Heat Transfer 1736 | . 252 9 20 . 1044 330 . . 81 Effects 4 | . . 4 . . . . . . . Energy Bleed 2 | . . 2 . . . . . . . Interference 2 | . . 2 . . . . . . . Siege Activations . | . . . . . . . . . . Robots Corrupted 3 | . . . . . 3 . . . . Combat Hostiles 3 | . . . . . 3 . . . . Parts Fried 4 | . . . . . 4 . . . . Impact Corruptions . | . . . . . . . . . . Robots Melted . | . . . . . . . . . . Combat Hostiles . | . . . . . . . . . . Parts Melted 14 | . . 1 . 2 7 4 . . . Heat Transferred 6801 | . . 481 37 148 4618 1480 . . 37 Parts Sabotaged . | . . . . . . . . . . Parts Stolen 1 | . . . . . . . . . 1 Parts Stripped . | . . . . . . . . . . Power Chain Reactions 5 | . . . . . 5 . . . . Missiles Intercepted . | . . . . . . . . . . Latent Energy Used 464 | . . . . . 464 . . . . LE Corruption 7 | . . . . . 7 . . . . Alert | -11 -10 -10 -10 -9 -8 -7 -7 -7 -6 ------- Run | Scr Mat Min Exi Min Mat Fac Low Dat Pro Peak Influence 1132 | . 170 116 . 70 1132 838 . . . Average Influence 339 | . 93 97 . 40 369 608 . . . Maximum Alert Level 4 | . . . . . 4 3 . . . Low Security (%) 46 | . 100 100 . 100 37 . . . . Level 1 12 | . . . . . 22 . . . . Level 2 29 | . . . . . 25 87 . . . Level 3 9 | . . . . . 13 12 . . . Level 4 1 | . . . . . 1 . . . . Level 5 . | . . . . . . . . . . High Security . | . . . . . . . . . . Max Security . | . . . . . . . . . . Squads Dispatched 23 | . 3 1 . . 14 5 . . . Investigation 7 | . 1 . . . 6 . . . . Extermination . | . . . . . . . . . . Reinforcement 9 | . 2 . . . 5 2 . . . Assault 5 | . . 1 . . 3 1 . . . Garrison 2 | . . . . . . 2 . . . Intercept . | . . . . . . . . . . Construction Impeded 2 | . . . . . 2 . . . . Haulers Reinforced 1 | . . . . . . 1 . . . Stealth | -11 -10 -10 -10 -9 -8 -7 -7 -7 -6 --------- Run | Scr Mat Min Exi Min Mat Fac Low Dat Pro Distress Signals 5 | . . . . . 5 . . . . Communications Jammed . | . . . . . . . . . . Distress Signals . | . . . . . . . . . . Times Spotted 153 | . 15 14 9 4 86 21 . . 4 Peak Tracking Total 12 | . 4 4 12 3 6 6 . . 3 Tactical Retreats 15 | . 1 1 2 1 9 1 . . . Traps | -11 -10 -10 -10 -9 -8 -7 -7 -7 -6 ------- Run | Scr Mat Min Exi Min Mat Fac Low Dat Pro Traps Triggered 5 | . 1 . . . 4 . . . . Indirectly . | . . . . . . . . . . Trap Hack Attempts . | . . . . . . . . . . Triggered . | . . . . . . . . . . Disarmed . | . . . . . . . . . . Reprogrammed . | . . . . . . . . . . Reused . | . . . . . . . . . . Traps Extracted . | . . . . . . . . . . Installed . | . . . . . . . . . . Triggered . | . . . . . . . . . . Machines | -11 -10 -10 -10 -9 -8 -7 -7 -7 -6 ---------- Run | Scr Mat Min Exi Min Mat Fac Low Dat Pro Machines Disabled 11 | . 1 . 1 . 5 4 . . . Max in Single Turn 1 | . 1 . 1 . 1 1 . . . Garrison Access 1 | . . . . . 1 . . . . Machines Sabotaged . | . . . . . . . . . . Garrisons Compromised . | . . . . . . . . . . Overloaded Fab Kills . | . . . . . . . . . . Fab Network Shutdowns . | . . . . . . . . . . Hacking | -11 -10 -10 -10 -9 -8 -7 -7 -7 -6 --------- Run | Scr Mat Min Exi Min Mat Fac Low Dat Pro Machines Accessed 26 | . 3 . 2 . 12 5 . 4 . Terminals 12 | . 3 . . . 7 2 . . . Fabricators 1 | . . . . . . 1 . . . Repair Stations 3 | . . . . . 2 1 . . . Recycling Units . | . . . . . . . . . . Scanalyzers 3 | . . . . . 2 1 . . . Garrison Access 1 | . . . . . 1 . . . . Total Hacks 92 | . 6 . 6 . 34 19 . 27 . Successful 69 | . 3 . 6 . 18 15 . 27 . Failed 23 | . 3 . . . 16 4 . . . Catastrophic 6 | . 2 . . . 3 1 . . . Database Lockouts . | . . . . . . . . . . Manual 21 | . 6 . 1 . 11 3 . . . Terminals 28 | . 6 . . . 17 5 . . . Fabricators 2 | . . . . . . 2 . . . Repair Stations 12 | . . . . . 8 4 . . . Recycling Units . | . . . . . . . . . . Scanalyzers 16 | . . . . . 8 8 . . . Garrison Access 1 | . . . . . 1 . . . . Terminal Hacks 46 | . 3 . 6 . 8 2 . 27 . Record 16 | . . . 5 . . . . 11 . Part Schematic 9 | . 2 . . . . . . 7 . Robot Schematic 7 | . . . . . . 1 . 6 . Prototype ID Bank 3 | . . . . . . . . 3 . Branch Access Points 3 | . 1 . . . 1 1 . . . Alert Level 3 | . . . . . 3 . . . . Transport Status 2 | . . . . . 2 . . . . Hauler Manifests 2 | . . . . . 2 . . . . EX-Prototype ID Bank 1 | . . . 1 . . . . . . Fabricator Hacks 1 | . . . . . . 1 . . . Load Schematic 1 | . . . . . . 1 . . . Repair Station Hacks 10 | . . . . . 6 4 . . . Scan Component 5 | . . . . . 3 2 . . . Repair 5 | . . . . . 3 2 . . . Recycling Unit Hacks . | . . . . . . . . . . Scanalyzer 11 | . . . . . 3 8 . . . Insert Component 6 | . . . . . 2 4 . . . Analyze 5 | . . . . . 1 4 . . . Garrison Access Hacks 1 | . . . . . 1 . . . . Seal Access 1 | . . . . . 1 . . . . Unauthorized Hacks . | . . . . . . . . . . Terminals . | . . . . . . . . . . Fabricators . | . . . . . . . . . . Repair Stations . | . . . . . . . . . . Recycling Units . | . . . . . . . . . . Scanalyzers . | . . . . . . . . . . Garrison Access . | . . . . . . . . . . Data Cores Recovered . | . . . . . . . . . . Used . | . . . . . . . . . . Hacking Detections 18 | . 2 . . . 11 5 . . . Full Trace Events 4 | . . . . . 4 . . . . Feedback Events 1 | . . . . . 1 . . . . Corruption 1 | . . . . . 1 . . . . Feedback Blocked . | . . . . . . . . . . Robot Schematics Acquired 7 | . . . . . . 1 . 6 . Robots Built . | . . . . . . . . . . Matter . | . . . . . . . . . . Time . | . . . . . . . . . . Total Robot Build Rating . | . . . . . . . . . . Part Schematics Acquired 13 | . 2 . . . 1 3 . 7 . Parts Built . | . . . . . . . . . . Matter . | . . . . . . . . . . Time . | . . . . . . . . . . Total Part Build Rating . | . . . . . . . . . . Parts Repaired 5 | . . . . . 3 2 . . . Time 166 | . . . . . 114 52 . . . Parts Recycled . | . . . . . . . . . . Recycled Matter . | . . . . . . . . . . Retrieved Matter . | . . . . . . . . . . Retrieved Components . | . . . . . . . . . . Parts Scanalyzed 5 | . . . . . 2 3 . . . Part Schematics Acquired 4 | . . . . . 1 3 . . . Parts Damaged . | . . . . . . . . . . Bothacking | -11 -10 -10 -10 -9 -8 -7 -7 -7 -6 ------------ Run | Scr Mat Min Exi Min Mat Fac Low Dat Pro Used RIF Installer . | . . . . . . . . . . Robots Hacked . | . . . . . . . . . . Non-combat . | . . . . . . . . . . Combat . | . . . . . . . . . . Robot Hacks Applied . | . . . . . . . . . . Relay Couplers Released 4 | . . . . . . 4 . . . Programmers 4 | . . . . . . 4 . . . Robots Rewired . | . . . . . . . . . . Allies Hacked . | . . . . . . . . . . Hacks Repelled . | . . . . . . . . . . Allies | -11 -10 -10 -10 -9 -8 -7 -7 -7 -6 -------- Run | Scr Mat Min Exi Min Mat Fac Low Dat Pro Total Allies 2 | . . 1 . . . . . . 1 Largest Group 1 | . . 1 1 . . . . . 1 Highest-Rated Group 94 | . . 31 31 . . . . . 94 Highest-Rated Ally 94 | . . 31 31 . . . . . 94 Total Orders . | . . . . . . . . . . Ally Attacks 28 | . . 18 . . . . . . 10 Total Damage 564 | . . 234 . . . . . . 330 Kills 9 | . . 8 . . . . . . 1 Allies Corrupted . | . . . . . . . . . . Allies Melted . | . . . . . . . . . . Intel | -11 -10 -10 -10 -9 -8 -7 -7 -7 -6 ------- Run | Scr Mat Min Exi Min Mat Fac Low Dat Pro Robot Analysis Total . | . . . . . . . . . . Derelict Logs Recovered 3 | . . . . 1 . . 1 . 1 Drone Launches . | . . . . . . . . . . Drone Recoveries . | . . . . . . . . . . Exploration | -11 -10 -10 -10 -9 -8 -7 -7 -7 -6 ------------- Run | Scr Mat Min Exi Min Mat Fac Low Dat Pro Turns Passed 5177 | . 615 272 483 100 2255 665 462 152 173 Spaces Moved 2862 | 1 287 191 448 76 1130 306 255 85 83 Core . | . . . . . . . . . . Treads 8 | . . . . . 8 . . . . Legs 780 | 1 287 20 . . 25 24 255 85 83 Wheels 2074 | . . 171 448 76 1097 282 . . . Hover . | . . . . . . . . . . Flight . | . . . . . . . . . . Fastest Speed 90 | 120 120 90 90 90 96 130 180 180 180 Average Speed 131 | 120 156 103 90 96 126 149 180 180 180 Slowest Speed 240 | 120 180 240 90 100 240 210 180 180 180 Overloaded Moves . | . . . . . . . . . . Propulsion Burnouts . | . . . . . . . . . . Robots Hopped . | . . . . . . . . . . Cave-ins Triggered . | . . . . . . . . . . Exploration Rate (%) 41 | 1 59 45 70 16 75 9 46 71 19 Regions Visited 9 Branch Regions 6 Pre-discovered Areas 2 | . . . 1 . . . . 1 . Known Exits Taken 4 | . 1 . . . . 1 1 1 . Unknown Exits Taken 5 | 1 . 1 1 1 1 . . . . Scrap Searched 3 | . . . . 2 . . 1 . . Spaces Dug . | . . . . . . . . . . Terrain Destroyed 275 | . 39 . . . 181 41 . . 14 Melee . | . . . . . . . . . . Projectile 24 | . . . . . 23 . . . 1 AOE 251 | . 39 . . . 158 41 . . 13 Actions | -11 -10 -10 -10 -9 -8 -7 -7 -7 -6 --------- Run | Scr Mat Min Exi Min Mat Fac Low Dat Pro Total 3748 | . 374 226 525 92 1643 451 258 84 95 Wait 307 | . . 3 68 5 187 43 . . 1 Move 2853 | . 286 190 447 75 1129 305 254 84 83 Hop . | . . . . . . . . . . Pick Up 99 | . 17 6 4 3 49 19 1 . . Fast Attach 32 | . 3 . . . 22 7 . . . Attach 32 | . 1 6 . 2 18 4 1 . . Detach 4 | . 1 . . . 2 1 . . . Swap 34 | . 5 . . 1 18 7 1 . 2 Drop 76 | . 10 . 4 1 38 22 1 . . Fire 311 | . 51 21 2 5 180 43 . . 9 Melee . | . . . . . . . . . . Ram . | . . . . . . . . . . Kick . | . . . . . . . . . . Crush . | . . . . . . . . . . Escape Stasis . | . . . . . . . . . . Rewire . | . . . . . . . . . . Trap . | . . . . . . . . . . Miscellaneous . | . . . . . . . . . . Route ------- -11/Scrapyard -10/Materials (discovered 2 exits: [*Mat] / *Min) -10/Mines (discovered 2 exits: [*Mat] / *Exi) -10/Exiles (discovered 2 exits: [*Min x2]) -9/Mines -8/Materials (discovered 3 exits: *Fac x3) -7/Factory (discovered 2 exits: *Low x2) -7/Lower Caves -7/Data Miner -6/Proximity Caves History --------- Turn | Location | Event 1 | -11/Scrapyard | Discovered new exit (range 0) 1 | -11/Scrapyard | Entered Materials 324 | -10/Materials | Build established: Mutant 348 | -10/Materials | Identified exit to Mines 434 | -10/Materials | Discovered new exit (range 10) 616 | -10/Materials | Entered Mines 617 | -10/Mines | Assembled infested the area 672 | -10/Mines | Met a Derelict testing a Signal Generator 683 | -10/Mines | Found Signal Generator 726 | -10/Mines | Lost 3 parts (1p1n1w) 755 | -10/Mines | Core integrity fell below 50% 796 | -10/Mines | Discovered new exit (range 6) 881 | -10/Mines | Deemed a non-threat by the Exiles lab entrance 881 | -10/Mines | Discovered new exit (range 5) 888 | -10/Mines | Entered Exiles 888 | -10/Exiles | Accompanied by 1 ally 913 | -10/Exiles | Met 8R-AWN 925 | -10/Exiles | Met EX-HEX 956 | -10/Exiles | Met EX-BIN 972 | -10/Exiles | Aligned with FarCom system 973 | -10/Exiles | Given EX-Vault access code 994 | -10/Exiles | Opened EX-Vault 1000 | -10/Exiles | Found Latent Energy Streamer 1046 | -10/Exiles | Warned to stay clear of 0b10 Research branches 1107 | -10/Exiles | Discovered new exit (range 15) 1266 | -10/Exiles | Met EX-DEC 1287 | -10/Exiles | Learned location of Zion (-6) 1336 | -10/Exiles | Attacked by the Exiles 1364 | -10/Exiles | Discovered new exit (range 10) 1371 | -10/Exiles | Left Exiles lab with Latent Energy Streamer 1371 | -10/Exiles | Entered Mines 1462 | -9/Mines | Discovered new exit (range 9) 1471 | -9/Mines | Entered Materials 1471 | -8/Materials | Evolved 4 slots: Propulsion x1, Utility x3 1536 | -8/Materials | Lost 6 parts (1p3n2w) 1809 | -8/Materials | Discovered new exit (range 8) 2074 | -8/Materials | Lost 4 parts (1n1u2w) 2230 | -8/Materials | Repaired Imp. Heat Sink 2528 | -8/Materials | Build established: Scavenger-Mutant 2571 | -8/Materials | Repaired Ion Cannon 2610 | -8/Materials | Repaired Imp. Light Armor Plating 2831 | -8/Materials | Discovered new exit (range 5) 3351 | -8/Materials | Lost 3 parts (2n1u) 3405 | -8/Materials | Build established: Hauler-Mutant 3471 | -8/Materials | First assault squad dispatched 3471 | -8/Materials | Discovered new exit (range 16) 3565 | -8/Materials | System corruption reached 10% 3587 | -8/Materials | Destroyed 9 combat bots 3726 | -8/Materials | Entered Factory 3726 | -7/Factory | Evolved 2 slots: Utility x2 3975 | -7/Factory | Discovered new exit (range 13) 3978 | -7/Factory | Identified exit to Lower Caves 3988 | -7/Factory | Build established: Scavenger-Mutant 4126 | -7/Factory | First assault squad dispatched 4138 | -7/Factory | Repaired Lrg. Storage Unit 4192 | -7/Factory | Repaired Lrg. Storage Unit 4259 | -7/Factory | Garrison activated, responded to threat 4391 | -7/Factory | Entered Lower Caves 4439 | -7/Lower Caves | Encountered a Warlord checkpoint 4559 | -7/Lower Caves | Learned Factory stockpile data 4837 | -7/Lower Caves | A Derelict revealed a hidden shortcut to meet someone special 4851 | -7/Lower Caves | Identified exit to Data Miner 4853 | -7/Lower Caves | Entered Data Miner 4853 | -7/Data Miner | Discovered new exit (range 6) 4888 | -7/Data Miner | Met Data Miner 4920 | -7/Data Miner | Learned location of Section 7 (-2) 4920 | -7/Data Miner | Acquired the access code to Warlord's prototype stash 4952 | -7/Data Miner | Received God Mode back door access code from Data Miner 5003 | -7/Data Miner | Build established: Hauler-Mutant 5003 | -7/Data Miner | Identified exit to Proximity Caves 5005 | -7/Data Miner | Entered Proximity Caves 5011 | -6/Proximity Caves | Learned Factory emergency access door positions 5121 | -6/Proximity Caves | Escorted by Enhanced Grunt 5169 | -6/Proximity Caves | Spotted OC-DP3(f) 5170 | -6/Proximity Caves | Encountered a Master Thief 5171 | -6/Proximity Caves | Latent Energy Streamer stolen by Master Thief 5178 | -6/Proximity Caves | Self-destructed Last Messages --------------- 05011_ Acquired derelict log, extracted data. Data stored: Factory emergency access points. 05121_ Enhanced Grunt: "Protecting LRC-V3." 05128_ G-50 Soldier destroyed. 05130_ System corrupted: Imp. Grenade Launcher failed to launch. 05134_ H:BXNY4L#PS,BQZO6L 05153_ System corrupted: Energy discharge (-102). 05156_ The unstable cave ceiling collapses. 05162_ Acquired 9 matter. 05165_ Acquired 14 matter. 05167_ Acquired 22 matter. 05170_ OC-DP3(f): "I heard you've acquired some good parts, parts that will soon be mine." 05171_ Latent Energy Streamer stolen. 05172_ Hvy. Ion Cannon destroyed. 05172_ Hrd. Heavy Armor Plating destroyed. Map ----- +----------------------------------------------------+ | | | | | | | ?????????????????????????????????????????????????? | | ?????????????????????????????????????????????????? | | ?????????????????????????????????????????????????? | | ?????????????????????????????????????????????????? | | ?????????????????????????????????????????????????? | | ?????????????????????????????????????????????????? | | ?????????????????????????????????????????????????? | | ?????????????????????????????????????????????????? | | ?????????????????????????????????????????????????? | | ?????????????????????????????????????????????????? | | ?????????????????????????????????????????????????? | | ?????????????????????????????????????????????????? | | ?????????????????????????????????????????????????? | | ?????????????????????????????????????????????????? | | ????????????????#####??????#######???????????????? | | ????????????????# ##???## #???????????????? | | ????????????????# #### #???????????????? | | ?????????????????# ;# #???????????????? | | ??????????????#### ?????????????????? | | ?????????????## ???????????????????? | | ???######????# ##???????????????????? | | ??## #???? ??# g###???????????????????? | | ??# #????# ???# @ #???????????????????? | | ?## #????# ????# ##??????????????????? | | ## #???## #?##### #??????????????????? | | #?### ### #??????????????????? | | ### ### #??????????????????? | | ## ##?##### #### ######?????????? | | ## #??###?## ??????? | | ## #### ###### ??????? | | ?# ##?## ############????????? | | ?# ## #??## #??????????????????? | | ?## #### #??## #??????????????????? | | ??## #??# ## #?## #??????????????????? | | #??### ## ##### ### ##??????????????????? | | ????### ####### ## #???????????????????? | | ?????# #??# ##???????????????????? | | ????# ???## ## #????????????????????? | | ????# ????# ##### ##????????????????????? | | ???# ?????# ##???###?????????????????????? | | ?? ?????# #????????????????????????????? | | ? ?????## ????????????????????????????? | | ?? ???????## ????????????????????????????? | | ???????????????# ????????????????????????????? | | ????????????????# ???????????????????????????? | | ????????????????#### ???????????????????????????? | | ????????????????????# ???????????????????????????? | +----------------------------------------------------+ Best States ------------- Heat Dissipation 48 Energy Generation 18 Energy Capacity 450 Matter Stores 300 Matter Capacity 300 Sight Range 16 Robot Scan Range 16 Terrain Scan Density 10 Armor Coverage 600 Evasion (%) 42 Targeting Accuracy 6 Recoil Reduction 1 Offensive Hacking 10 Item Schematics ----------------- Lrg. Storage Unit | -10/Materials | Hacked Med. Storage Unit | -10/Materials | Hacked Hacking Suite | -8/Materials | Scanalyzed Imp. Propulsion Shielding | -7/Factory | Scanalyzed Adv. Heat Sink | -7/Factory | Scanalyzed Adv. Sensor Array | -7/Factory | Scanalyzed Combat Drone Bay | -7/Data Miner | Free Lgt. Regenerative Plating | -7/Data Miner | Free Exp. Sensor Array | -7/Data Miner | Free Exp. Targeting Computer | -7/Data Miner | Free Tactical Coordination Suite | -7/Data Miner | Free Exp. Transmission Jammer | -7/Data Miner | Free Mni. Smartbomb Launcher | -7/Data Miner | Free Robot Schematics ------------------ B-48 Gladiator | -7/Factory | Hacked S-27 Virus | -7/Data Miner | Free G-50 Soldier | -7/Data Miner | Free G-67 Veteran | -7/Data Miner | Free X-72 Disruptor | -7/Data Miner | Free H-66 Slayer | -7/Data Miner | Free I-36 Angel | -7/Data Miner | Free Fabricated ------------ Nothing Alien Tech Used ----------------- None Achievements -------------- None Challenges ------------ None Game ------ Seed SwarmMiniDoublenader Manual? 0 Play Time 00:48:37 Cumulative 314.1 hours Start 2020.06.14 @ 13:40:22 End 2020.06.14 @ 14:30:02 Sessions 1 Manual Loads 0 Difficulty Rogue Special Mode None Game No. 342 Rogue 342 Adventurer 0 Explorer 0 Win Type - Total 29 Types 17/3/2/1/2/1/3 Lore% 93 Gallery% 87 Achievement% 78 Wizard Run 0 Options --------- ASCII 0 Keyboard 0 Movement Arrows Keybinds 0 Fullscreen 2 Font 18/SmallcapsGlow Map View 76x50 Tactical HUD 1 Map Filters NONE Filters NONE Steam 1 RUN: 1a59632c-e76a-4d3a-8a58-b5d84ad07fac